Workbook

Sheet 1 неделя
A1: 1 неделя | B1: Выход, гр | C1: Цена, 1 кг | D1: Цена в блюде
A2: Понедельник
A3: Помидоры свежие | B3: 60
A4: Помидоры | B4: 61.6 | C4: 130 | D4: =C4/1000*B4 -> 8.008
A5: Котлеты | B5: 80
A6: Говядина (котлетное мясо) | B6: 72 | C6: 440 | D6: =C6/1000*B6 -> 31.68
A7: Хлеб пшенинчый | B7: 9 | C7: 60 | D7: 0.54
A8: Молоко | B8: 12 | C8: 65 | D8: 0.78
A9: Сухари панировочные | B9: 5 | C9: 100 | D9: 0.5
A10: Масло растительное | B10: 3 | C10: 140 | D10: 0.42
A11: Масло сливочное | B11: 5 | C11: 625 | D11: 3.125
A12: Соль | B12: 1 | C12: 16 | D12: 0.016
A13: Каша вязска гречневая | B13: 150/5 | D13: =SUM(D6:D12) -> 37.061
A14: Гречка | B14: 150 | C14: 100 | D14: 15
A15: Масло сливочное | B15: 5 | C15: 625 | D15: 3.125
A16: Соль | B16: 1 | C16: 16 | D16: 0.016
A17: Какао с молоком | B17: 200
A18: Какао порошок | B18: 4 | C18: 271 | D18: 1.084
A19: Сахар | B19: 20 | C19: 80 | D19: 1.6
A20: Молоко | B20: 100 | C20: 65 | D20: 6.5
A21: Вода | B21: 110
A22: Хлеб пшеничный | B22: 30 | C22: 60 | D22: 1.8
A23: Хлеб ржано-пшеничный | B23: 20 | C23: 51 | D23: 1.02
A24: Стоимость понедельник | D24: =SUM(D4:D23) -> 112.275
A25: Вторник
A26: Фрукты (яблоки) | B26: 100
A27: Яблоки | B27: 100 | C27: 100 | D27: =C27/1000*B27 -> 10
A28: Огурцы свежие (порциями) | B28: 60
A29: Огурцы свежие | B29: 61.6 | C29: 100 | D29: =C29/1000*B29 -> 6.16
A30: Рагу из птицы | B30: 50/150
A31: Курица | B31: 100.00 | C31: 270 | D31: 27
A32: Картофель свежий | B32: 178.00 | C32: 25 | D32: 4.45
A33: Лук репчатый | B33: 11.90 | C33: 30 | D33: 0.357
A34: Томатная паста | B34: 2.00 | C34: 175 | D34: 0.35
A35: Масло растительное | B35: 4.00 | C35: 140 | D35: 0.56
A36: Соль | B36: 2.00 | C36: 16 | D36: 0.032
A37: Лавровый лист | B37: 0.01 | C37: 960 | D37: 0.0096
A38: Морковь свежая | B38: 13.30 | C38: 35 | D38: 0.4655
A39: Кофейный напиток с молоком | B39: 200
A40: Кофейный напиток | B40: 5 | C40: 500 | D40: 2.5
A41: Сахар | B41: 20 | C41: 80 | D41: 1.6
A42: Молоко | B42: 100 | C42: 65 | D42: 6.5
A43: Вода | B43: 120
A44: Хлеб пшеничный | B44: 30 | C44: 60 | D44: 1.8
A45: Хлеб ржано-пшеничный | B45: 20 | C45: 51 | D45: 1.02
A46: Стоимость вторник | D46: =SUM(D27:D45) -> 62.8041
A47: Среда
A48: Салат из белокачанной капусты | B48: 60
A49: Капуста свежая | B49: 60 | C49: 25 | D49: =C49/1000*B49 -> 1.5
A50: Морковь свежая | B50: 8 | C50: 35 | D50: =C50/1000*B50 -> 0.2793
A51: Сахарный песок | B51: 3 | C51: 80 | D51: 0.24
A52: Соль | B52: 0.3 | C52: 16 | D52: 0.0048
A53: Масло растительное | B53: 3 | C53: 140 | D53: 0.42
A54: Лимонная кислота | B54: 0.2 | C54: 312 | D54: =C54/1000*B54 -> 0.05616 | E54: 2.5
A55: Гуляш из говядины | B55: 50/50
A56: Говядина (лопаточный отруб) | B56: 81.00 | C56: 440 | D56: 35.64
A57: Масло растительное | B57: 5.00 | C57: 140 | D57: 0.7
A58: Лук репчатый | B58: 11.90 | C58: 30 | D58: 0.357
A59: Томатная паста | B59: 3.20 | C59: 175 | D59: 0.56
A60: Мука пшеничная | B60: 2.00 | C60: 40 | D60: 0.08
A61: Соль | B61: 1.00 | C61: 16 | D61: 0.016
A62: Лавровый лист | B62: 0.01 | C62: 960 | D62: 0.0096 | E62: 37.36
A63: Макаронные изделия отварные | B63: 150
A64: Макаронные изделия | B64: 53 | C64: 50 | D64: 2.65
A65: Масло сливочное | B65: 5 | C65: 625 | D65: 3.125
A66: Соль | B66: 1 | C66: 16 | D66: 0.016 | E66: 5.79
A67: Чай с сахаром | B67: 200/15
A68: Чай | B68: 1 | C68: 688 | D68: 0.688
A69: Сахар | B69: 15 | C69: 80 | D69: 1.2
A70: Вода | B70: 150 | D70: 0 | E70: 1.88
A71: Хлеб пшеничный | B71: 30 | C71: 60 | D71: 1.8
A72: Хлеб ржано-пшеничный | B72: 20 | C72: 51 | D72: 1.02
A73: Стоимость среда | D73: =SUM(D49:D72) -> 50.36186
A74: Четверг
A75: Фрукты (груши) | B75: 100
A76: Груши | B76: 100 | C76: 220 | D76: =C76/1000*B76 -> 22 | E76: 22
A77: Салат из моркови | B77: 60
A78: Морковь свежая | B78: 65 | C78: 35 | D78: =C78/1000*B78 -> 2.275
A79: Масло растительное | B79: 6 | C79: 140 | D79: 0.84
A80: Сахарный песок | B80: 6 | C80: 80 | D80: 0.48 | E80: 3.595
A81: Котлеты рыбные | B81: 80
A82: Котлеты из судака (трески) п/ф | B82: 100 | C82: 325 | D82: 32.5 | E82: 32.5
A83: Пюре картофельное | B83: 150
A84: Картофель | B84: 170 | C84: 25 | D84: 4.25
A85: Молоко | B85: 24 | C85: 65 | D85: 1.56
A86: Масло сливочное | B86: 5 | C86: 625 | D86: 3.125
A87: Соль | B87: 1 | C87: 16 | D87: 0.016 | E87: 8.95
A88: Какао с молоком | B88: 200
A89: Какао порошок | B89: 4 | C89: 271 | D89: 1.084
A90: Сахар | B90: 20 | C90: 80 | D90: 1.6
A91: Молоко | B91: 100 | C91: 65 | D91: 6.5
A92: Вода | B92: 110 | D92: 0 | E92: 9.18
A93: Хлеб пшеничный | B93: 30 | C93: 60 | D93: 1.8
A94: Хлеб ржано-пшеничный | B94: 20 | C94: 51 | D94: 1.02
A95: Стоимость четверг | D95: =SUM(D76:D94) -> 79.05
A96: Пятница
A97: Фрукты (яблоки) | B97: 100
A98: Яблоки | B98: 100 | C98: 100 | D98: =C98/1000*B98 -> 10 | E98: 10
A99: Помидоры свежие | B99: 60
A100: Помидоры | B100: 61.6 | C100: 130 | D100: =C100/1000*B100 -> 8.008 | E100: 8.008
A101: Котлеты рубленные из птицы | B101: 80
A102: Курица | B102: 130 | C102: 270 | D102: 35.1
A103: Хлеб пшеничный | B103: 13 | C103: 60 | D103: 0.78
A104: Молоко | B104: 19 | C104: 65 | D104: 1.235
A105: Сухари | B105: 5 | C105: 100 | D105: 0.5
A106: Масло ратистельное | B106: 3 | C106: 140 | D106: 0.42
A107: Масло сливочное | B107: 5 | C107: 625 | D107: 3.125
A108: Соль | B108: 1 | C108: 16 | D108: 0.016 | E108: 41.176
A109: Рис отварной | B109: 150
A110: Рис | B110: 55 | C110: 90 | D110: 4.95
A111: Масло сливочное | B111: 7 | C111: 625 | D111: 4.375
A112: Соль | B112: 1 | C112: 16 | D112: 0.016 | E112: 9.34
A113: Чай с лимоном | B113: 200/15/7
A114: Чай | B114: 1 | C114: 688 | D114: 0.688
A115: Сахар | B115: 15 | C115: 80 | D115: 1.2
A116: Лимон | B116: 8 | C116: 170 | D116: 1.36
A117: Вода | B117: 150 | D117: 0 | E117: 3.248
A118: Хлеб пшеничный | B118: 30 | C118: 60 | D118: 1.8
A119: Хлеб ржано-пшеничный | B119: 20 | C119: 51 | D119: 1.02
A120: Стоимость пятница | D120: =SUM(D98:D119) -> 74.593
A121: Суббота
A122: Фрукты | B122: 100
A123: Апельсин | B123: 100 | C123: 150 | D123: =C123/1000*B123 -> 15 | E123: 15
A124: Салат из свежих огурцов с маслом | B124: 60
A125: Огурцы свежие | B125: 58.14 | C125: 100 | D125: =C125/1000*B125 -> 5.814
A126: Масло растительное | B126: 3.60 | C126: 140 | D126: 0.504 | E126: 6.318
A127: Говядина тушеная | B127: 60/30
A128: Говядина | B128: 83 | C128: 440 | D128: 36.52
A129: Морковь свежая | B129: 5 | C129: 35 | D129: 0.175
A130: Лук | B130: 5 | C130: 30 | D130: 0.15
A131: Масло растительное | B131: 5 | C131: 140 | D131: 0.7
A132: Томатная паста | B132: 7 | C132: 175 | D132: 1.225
A133: Мука пшеничная | B133: 2 | C133: 40 | D133: 0.08
A134: Соль | B134: 1 | C134: 16 | D134: 0.016 | E134: 38.866
A135: Макаронные изделия отварные | B135: 150
A136: Макаронные изделия | B136: 53 | C136: 50 | D136: =C136/1000*B136 -> 2.65
A137: Масло сливочное | B137: 5 | C137: 625 | D137: 3.125
A138: Соль | B138: 1 | C138: 16 | D138: 0.016 | E138: 5.791
A139: Чай с сахаром | B139: 200/15
A140: Чай | B140: 1 | C140: 688 | D140: 0.688
A141: Сахар | B141: 15 | C141: 80 | D141: 1.2 | E141: 1.88
A142: Вода | B142: 150 | D142: 0
A143: Хлеб пшеничный | B143: 30 | C143: 60 | D143: 1.8
A144: Хлеб ржано-пшеничный | B144: 20 | C144: 51 | D144: 1.02
A145: Стоимость суббота | D145: =SUM(D123:D144) -> 70.683

Sheet 2 неделя
A1: 2 неделя | B1: Выход, гр | C1: Цена, 1 кг | D1: Цена в блюде
A2: Понедельник
A3: Фрукты | B3: 100
A4: Апельсин | B4: 100 | C4: 150 | D4: =C4/1000*B4 -> 15
A5: Огурцы свежие (порциями) | B5: 60 | D5: =C5/1000*B5 -> 0
A6: Огурцы свежие | B6: 61.6 | C6: 100 | D6: 6.16
A7: Говядина тушеная | B7: 50/50 | D7: 0
A8: Говядина (лопаточный отруб) | B8: 83 | C8: 440 | D8: 36.52
A9: Морковь | B9: 5 | C9: 35 | D9: 0.175
A10: Лук репчатый | B10: 5 | C10: 30 | D10: 0.15
A11: Масло растительное | B11: 5 | C11: 140 | D11: 0.7
A12: Томатная паста | B12: 7 | C12: 175 | D12: 1.225
A13: Мука пшеничная | B13: 2 | C13: 40 | D13: 0.08
A14: Соль | B14: 1 | C14: 16 | D14: 0.016 | E14: 38.866
A15: Каша рассыпчатая (гречневая) | B15: 150 | D15: 0
A16: Гречка | B16: 71 | C16: 100 | D16: 7.1
A17: Соль | B17: 1 | C17: 16 | D17: 0.016 | E17: 7.1
A18: Какао с молоком | B18: 200 | D18: 0
A19: Какао порошок | B19: 4 | C19: 271 | D19: 1.084
A20: Сахар | B20: 20 | C20: 80 | D20: 1.6
A21: Молоко | B21: 100 | C21: 65 | D21: 6.5
A22: Вода | B22: 110 | D22: 0 | E22: 9.184
A23: Хлеб пшеничный | B23: 30 | C23: 60 | D23: 1.8
A24: Хлеб ржано-пшеничный | B24: 20 | C24: 51 | D24: 1.02
A25: Стоимость понедельник | D25: =SUM(D4:D24) -> 79.146
A26: Вторник
A27: Помидоры свежие | B27: 60
A28: Помидоры | B28: 61.6 | C28: 130 | D28: =C28/1000*B28 -> 8.008 | E28: 8.008
A29: Плов из птицы | B29: 50/150
A30: Курица | B30: 90 | C30: 270 | D30: =C30/1000*B30 -> 24.3
A31: Масло растительное | B31: 7 | C31: 140 | D31: 0.98
A32: Лук репчатый | B32: 8 | C32: 30 | D32: 0.24
A33: Морковь | B33: 10 | C33: 35 | D33: 0.35
A34: Томатная паста | B34: 5 | C34: 175 | D34: 0.875
A35: Рис | B35: 35 | C35: 90 | D35: 3.15
A36: Соль | B36: 1 | C36: 16 | D36: 0.016 | E36: 29.91
A37: Чай с лимоном | B37: 200/15/7
A38: Чай | B38: 1 | C38: 688 | D38: 0.688
A39: Сахар | B39: 15 | C39: 80 | D39: 1.2
A40: Лимон | B40: 8 | C40: 170 | D40: 1.36 | E40: 3.248
A41: Вода | B41: 150 | D41: 0
A42: Хлеб пшеничный | B42: 30 | C42: 60 | D42: 1.8
A43: Хлеб ржано-пшеничный | B43: 20 | C43: 51 | D43: 1.02
A44: Стоимость вторник | D44: =SUM(D28:D43) -> 43.987
A45: Среда
A46: Салат из белокачанной капусты | B46: 60
A47: Капуста свежая | B47: 60 | C47: 25 | D47: =C47/1000*B47 -> 1.5
A48: Морковь свежая | B48: 8 | C48: 35 | D48: =C48/1000*B48 -> 0.2793
A49: Сахарный песок | B49: 3 | C49: 80 | D49: 0.24
A50: Соль | B50: 0.3 | C50: 16 | D50: 0.0048
A51: Масло растительное | B51: 3 | C51: 140 | D51: 0.42
A52: Лимонная кислота | B52: 0.2 | C52: 312 | D52: 0.05616 | E52: 2.5
A53: Котлеты рыбные | B53: 80
A54: Котеты из судака (трески) п/ф | B54: 100 | C54: 325 | D54: 32.5 | E54: 32.5
A55: Пюре картофельное | B55: 150
A56: Картофель | B56: 170 | C56: 25 | D56: 4.25
A57: Молоко | B57: 24 | C57: 65 | D57: 1.56
A58: Масло сливочное | B58: 5 | C58: 625 | D58: 3.125
A59: Соль | B59: 1 | C59: 16 | D59: 0.016 | E59: 8.95
A60: Чай с сахаром | B60: 200/15
A61: Чай | B61: 1 | C61: 688 | D61: 0.688
A62: Сахар | B62: 15 | C62: 80 | D62: 1.2 | E62: 1.88
A63: Вода | B63: 150 | D63: 0
A64: Хлеб пшеничный | B64: 30 | C64: 60 | D64: 1.8
A65: Хлеб ржано-пшеничный | B65: 20 | C65: 51 | D65: 1.02
A66: Стоимость среда | D66: =SUM(D47:D65) -> 48.65926
A67: Четверг
A68: Салат из моркови | B68: 60
A69: Морковь свежая | B69: 65 | C69: 35 | D69: =C69/1000*B69 -> 2.275
A70: Масло растительное | B70: 6 | C70: 140 | D70: =C70/1000*B70 -> 0.84
A71: Сахарный песок | B71: 6 | C71: 80 | D71: 0.48 | E71: 3.595
A72: Птица тушеная в соусе | B72: 50/50
A73: Курица | B73: 100 | C73: 270 | D73: =C73/1000*B73 -> 27
A74: Масло растительное | B74: 2 | C74: 140 | D74: 0.28
A75: Сметана | B75: 12.5 | C75: 190 | D75: 2.375
A76: Мука пшеничная | B76: 4 | C76: 40 | D76: 0.16 | E76: 29.815
A77: Вода или отвар | B77: 38
A78: Макаронные изделия отварные с маслом | B78: 150/5
A79: Макаронные изделия | B79: 53 | C79: 50 | D79: 2.65
A80: Масло сливочное | B80: 5 | C80: 625 | D80: 3.125
A81: Соль | B81: 1 | C81: 16 | D81: 0.016 | E81: 5.791
A82: Кофейный напиток с молоком | B82: 200
A83: Кофейный напиток | B83: 5 | C83: 500 | D83: 2.5
A84: Сахар | B84: 20 | C84: 80 | D84: 1.6
A85: Молоко | B85: 100 | C85: 65 | D85: 6.5
A86: Вода | B86: 120 | D86: 0 | E86: 10.6
A87: Хлеб пшеничный | B87: 30 | C87: 60 | D87: 1.8
A88: Хлеб ржано-пшеничный | B88: 20 | C88: 51 | D88: 1.02
A89: Стоимость четверг | D89: =SUM(D69:D88) -> 52.621
A90: Пятница
A91: Фрукты (бананы) | B91: 150
A92: Бананы | B92: 150 | C92: 170 | D92: =C92/1000*B92 -> 25.5
A93: Свекла отварная дольками с маслом | B93: 60
A94: Свекла | B94: 75 | C94: 20 | D94: =B94/1000*C94 -> 1.5
A95: Масло растительное | B95: 3 | C95: 140 | D95: =C95/1000*B95 -> 0.42 | E95: 1.92
A96: Запеканта картофельная с мясом | B96: 180
A97: Говядина (котлетное мясо) | B97: 63 | C97: 440 | D97: 27.72
A98: Масло растительное | B98: 5 | C98: 140 | D98: 0.7
A99: Масло сливочное | B99: 11 | C99: 625 | D99: 6.875
A100: Сухари панировочные | B100: 3 | C100: 100 | D100: 0.3
A101: Лук репчатый | B101: 15 | C101: 30 | D101: 0.45
A102: Картофель | B102: 230 | C102: 25 | D102: 5.75
A103: Соль | B103: 1 | C103: 16 | D103: 0.016 | E103: 41.81
A104: Чай с лимоном | B104: 200/15/7
A105: Чай | B105: 1 | C105: 688 | D105: 0.688
A106: Сахар | B106: 15 | C106: 80 | D106: 1.2
A107: Лимон | B107: 8 | C107: 170 | D107: 1.36
A108: Вода | B108: 150 | D108: 0 | E108: 3.248
A109: Хлеб пшеничный | B109: 30 | C109: 60 | D109: 1.8
A110: Хлеб ржано-пшеничный | B110: 20 | C110: 51 | D110: 1.02
A111: Стоимость пятница | D111: =SUM(D92:D110) -> 75.299
A112: Суббота
A113: Салат из свежих огурцов с маслом | B113: 60
A114: Огурцы свежие | B114: 58.14 | C114: 100 | D114: =C114/1000*B114 -> 5.814
A115: Масло растительное | B115: 3.60 | C115: 140 | D115: =C115/1000*B115 -> 0.504 | E115: 6.318
A116: Котлеты рубленные из птицы | B116: 80
A117: Курица | B117: 130 | C117: 270 | D117: =C117/1000*B117 -> 35.1
A118: Хлеб пшеничный | B118: 14 | C118: 60 | D118: 0.84
A119: Молоко | B119: 19 | C119: 65 | D119: 1.235
A120: Сухари панировочные | B120: 8 | C120: 100 | D120: 0.8
A121: Масло растительное | B121: 5 | C121: 140 | D121: 0.7
A122: Масло сливочное | B122: 2 | C122: 625 | D122: 1.25
A123: Соль | B123: 1 | C123: 16 | D123: 0.016 | E123: 39.941
A124: Рис отварной | B124: 150
A125: Рис | B125: 55 | C125: 90 | D125: 4.95
A126: Масло сливочное | B126: 7 | C126: 625 | D126: 4.375
A127: Соль | B127: 1 | C127: 16 | D127: 0.016 | E127: 9.341
A128: Чай с сахаром | B128: 200/15
A129: Чай | B129: 1 | C129: 688 | D129: 0.688
A130: Сахар | B130: 15 | C130: 80 | D130: 1.2
A131: Вода | B131: 150 | D131: 0 | E131: 1.88
A132: Хлеб пшеничный | B132: 30 | C132: 60 | D132: 1.8
A133: Хлеб ржано-пшеничный | B133: 20 | C133: 51 | D133: 1.02
A134: Стоимость суббота | D134: =SUM(D114:D133) -> 60.308
A135: Итого за 2 недели | D135: ='1 неделя'!D24+'1 неделя'!D46+'1 неделя'!D73+'1 неделя'!D95+'1 неделя'!D120+'1 неделя'!D145+'2 неделя'!D25+'2 неделя'!D44+'2 неделя'!D66+'2 неделя'!D89+'2 неделя'!D111+'2 неделя'!D134 -> 809.78722 | E135: 801.12 | F135: контрольная цифра за 2 недели при стоимости 66,76 за 1 детодень
